fUST/lending_fUST_20250810
["ID","MTS","AMOUNT","RATE_DAILY","PERIOD"]
[378369797,1754841041199,-534.18,0.00020234,2]
[378369799,1754841041208,-464.35,0.00020234,2]
[378369801,1754841041217,-460.0,0.00020234,2]
[378369803,1754841041227,-261.22165999,0.00020234,2]
[378369805,1754841041236,-530.48,0.00020234,2]
[378369806,1754841041246,-460.0,0.00020235,2]
[378369807,1754841041255,-852.25,0.00020235,2]
[378369808,1754841041264,-460.0,0.00020235,2]
[378369809,1754841041274,-1026.44,0.00020235,2]
[378369810,1754841041283,-460.0,0.00020235,2]
[378369811,1754841041292,-669.75,0.00020235,2]
[378369812,1754841041301,-500.0,0.00020235,2]
[378369813,1754841041311,-238.98253636,0.00020279,2]
[378369814,1754841041321,-151.0,0.000203,3]
[378369815,1754841041331,-460.0,0.00020333,2]
[378369816,1754841041340,-460.0,0.00020333,2]
[378369817,1754841041350,-460.0,0.00020333,2]
[378369818,1754841041360,-460.0,0.00020333,2]
[378369819,1754841041369,-460.0,0.00020333,2]
[378369820,1754841041379,-460.0,0.00020333,2]
[378369821,1754841041388,-381.14,0.00020333,2]
[378369822,1754841041397,-460.0,0.00020334,2]
[378369823,1754841041407,-460.0,0.00020334,2]
[378369824,1754841041416,-460.0,0.00020334,2]
[378369825,1754841041426,-460.0,0.00020334,2]
[378369826,1754841041435,-309.7597013,0.00020334,2]
[378369827,1754841041444,-151.0,0.000204,4]
[378369828,1754841041454,-331.01575709,0.000204,2]
[378369829,1754841041463,-434.48716684,0.00020435,2]
[378369830,1754841041473,-508.43,0.00020435,2]
[378369831,1754841041482,-460.0,0.00020435,2]
[378369832,1754841041492,-410.37683111,0.00020435,2]
[378369833,1754841041501,-460.0,0.00020435,2]
[378369834,1754841041510,-460.0,0.00020435,2]
[378369835,1754841041520,-2293.08,0.00020435,2]
[378369836,1754841041529,-499.59,0.00020435,2]
[378369837,1754841041539,-789.9,0.00020435,2]
[378369838,1754841041548,-508.43,0.00020436,2]
[378369839,1754841041558,-460.0,0.00020436,2]
[378369840,1754841041567,-504.52,0.00020436,2]
[378369841,1754841041576,-460.0,0.00020436,2]
[378369842,1754841041586,-471.8810944,0.00020436,2]
[378369843,1754841041595,-595.08,0.00020436,2]
[378369844,1754841041604,-932.83,0.00020436,2]
[378369845,1754841041614,-151.0,0.00020438,2]
[378369846,1754841041623,-151.0,0.00020438,2]
[378369847,1754841041633,-151.0,0.00020438,2]
[378369848,1754841041643,-508.43,0.00020438,2]
[378369849,1754841041652,-151.0,0.00020439,2]
[378369850,1754841041661,-151.0,0.00020439,2]
[378369851,1754841041671,-151.0,0.00020447,2]
[378369852,1754841041679,-460.0,0.00020505,2]
[378369853,1754841041691,-460.0,0.00020506,2]
[378369854,1754841041700,-968.36,0.00020506,2]
[378369855,1754841041709,-1426.31,0.00020506,2]
[378369856,1754841041718,-460.53,0.00020506,2]
[378369857,1754841041727,-1420.19,0.00020508,2]
[378369858,1754841041738,-460.0,0.00020508,2]
[378369859,1754841041748,-880.99,0.00020508,2]
[378369860,1754841041758,-464.35,0.00020508,2]
[378369861,1754841041770,-852.25,0.00020509,2]
[378369862,1754841041779,-1026.44,0.00020509,2]
[378369863,1754841041789,-493.74,0.00020509,2]
[378369864,1754841041798,-669.75,0.00020509,2]
[378369865,1754841041807,-500.0,0.00020509,2]
[378369866,1754841041816,-3390.57197454,0.00020545,2]
[378369867,1754841041825,-731.18748631,0.00020545,2]
[378369868,1754841041835,-151.0,0.000206,3]
[378369869,1754841041849,-460.0,0.00020607,2]
[378369870,1754841041858,-460.0,0.00020607,2]
[378369871,1754841041867,-460.0,0.00020607,2]
[378369872,1754841041877,-460.0,0.00020608,2]
[378369874,1754841041887,-460.0,0.00020608,2]
[378369876,1754841041896,-460.0,0.00020608,2]
[378369878,1754841041905,-151.0,0.000207,3]
[378369880,1754841041914,-460.0,0.00020709,2]
[378369882,1754841041923,-460.0,0.00020709,2]
[378369883,1754841041934,-2293.08,0.00020709,2]
[378369884,1754841041943,-499.59,0.00020709,2]
[378369885,1754841041952,-789.9,0.00020709,2]
[378369886,1754841041961,-508.43,0.0002071,2]
[378369887,1754841041971,-460.0,0.0002071,2]
[378369888,1754841041980,-504.52,0.0002071,2]
[378369889,1754841041989,-460.0,0.0002071,2]
[378369890,1754841042000,-595.08,0.0002071,2]
[378369891,1754841042009,-932.83,0.0002071,2]
[378369892,1754841042018,-460.0,0.00020779,2]
[378369893,1754841042028,-165.27873622,0.0002078,2]
[378369894,1754841042037,-968.36,0.0002078,2]
[378369895,1754841042046,-1426.31,0.0002078,2]
[378369896,1754841042055,-1420.19,0.00020782,2]
[378369897,1754841042065,-460.0,0.00020782,2]
[378369898,1754841042074,-880.99,0.00020782,2]
[378369899,1754841042083,-464.35,0.00020782,2]
[378369900,1754841042093,-852.25,0.00020783,2]
[378369901,1754841042102,-1026.44,0.00020783,2]
[378369902,1754841042112,-669.75,0.00020783,2]
[378369903,1754841042122,-550.34523238,0.00020881,2]
[378369904,1754841042131,-460.0,0.00020881,2]
[378369905,1754841042141,-460.0,0.00020882,2]
[378369906,1754841042150,-442.74834413,0.00020882,2]
[378369907,1754841042160,-460.0,0.00020882,2]
[378369908,1754841042169,-331.01575709,0.000209,2]
[378369909,1754841042178,-200.0,0.00020953,15]
[378369910,1754841042188,-300.0,0.00020953,15]
[378369911,1754841042197,-508.43,0.00020983,2]
[378369912,1754841042206,-460.0,0.00020983,2]
[378369913,1754841042215,-2293.08,0.00020983,2]
[378369914,1754841042225,-499.59,0.00020983,2]
[378369915,1754841042234,-789.9,0.00020983,2]
[378369916,1754841042244,-460.0,0.00020984,2]
[378369917,1754841042253,-504.52,0.00020984,2]
[378369918,1754841042263,-460.0,0.00020984,2]
[378369919,1754841042272,-595.08,0.00020984,2]
[378369920,1754841042282,-932.83,0.00020984,2]
[378369921,1754841042291,-508.43,0.00020988,2]
[378369922,1754841042301,-151.0,0.00021,4]
[378369923,1754841042310,-460.0,0.00021053,2]
[378369924,1754841042319,-968.36,0.00021054,2]
[378369925,1754841042329,-1426.31,0.00021054,2]
[378369926,1754841042338,-1420.19,0.00021056,2]
[378369927,1754841042347,-460.0,0.00021056,2]
[378369928,1754841042357,-880.99,0.00021056,2]
[378369929,1754841042366,-464.35,0.00021056,2]
[378369930,1754841042479,-852.25,0.00021057,2]
[378369931,1754841042490,-1026.44,0.00021057,2]
[378369932,1754841042500,-669.75,0.00021057,2]
[378369933,1754841042510,-151.0,0.000211,4]
[378369934,1754841042520,-547.69,0.00021155,2]
[378369935,1754841042529,-460.0,0.00021156,2]
[378369936,1754841042538,-460.0,0.00021156,2]
[378369937,1754841042547,-508.43,0.00021176,2]
[378369938,1754841042556,-160.0,0.00021177,2]
[378369939,1754841042566,-160.0,0.0002118,2]
[378369940,1754841042576,-160.0,0.0002118,2]
[378369941,1754841042585,-843.0869304,0.0002118,2]
[378369942,1754841042594,-231.96268195,0.0002118,2]
[378369943,1754841042604,-215.44987349,0.0002118,2]
[378369944,1754841042614,-12668.57659669,0.0002118,2]
[378369945,1754841042623,-461.62346162,0.0002118,2]
[378369946,1754841042633,-160.0,0.0002118,2]
[378369948,1754841042642,-160.0,0.0002118,2]
[378369950,1754841042651,-216.64838636,0.0002118,2]
[378369951,1754841042661,-160.0,0.0002118,2]
[378369952,1754841042670,-312.16666667,0.00021181,2]
[378369953,1754841042679,-160.0,0.00021181,2]
[378369954,1754841042690,-527.86640923,0.00021181,2]
[378369955,1754841042702,-508.43,0.00021255,2]
[378369956,1754841042711,-460.0,0.00021257,2]
[378369957,1754841042720,-2293.08,0.00021257,2]
[378369959,1754841042730,-499.59,0.00021257,2]
[378369960,1754841042740,-789.9,0.00021257,2]
[378369961,1754841042750,-508.43,0.00021258,2]
[378369962,1754841042760,-460.0,0.00021258,2]
[378369964,1754841042770,-504.52,0.00021258,2]
[378369966,1754841042779,-460.0,0.00021258,2]
[378369968,1754841042789,-595.08,0.00021258,2]
[378369969,1754841042798,-932.83,0.00021258,2]
[378369970,1754841042808,-151.0,0.00021259,2]
[378369971,1754841042817,-151.0,0.00021259,2]
[378369972,1754841042826,-151.0,0.00021259,2]
[378369973,1754841042836,-151.0,0.00021259,2]
[378369974,1754841042845,-151.0,0.00021259,2]
[378369975,1754841042855,-151.040733,0.00021259,2]
[378369976,1754841042864,-151.0,0.000213,3]
[378369977,1754841042874,-1496.24,0.00021322,3]
[378369978,1754841042883,-748.12,0.00021322,3]
[378369979,1754841042892,-374.06,0.00021322,3]
[378369980,1754841042902,-460.0,0.00021327,2]
[378369981,1754841042911,-968.36,0.00021328,2]
[378369982,1754841042921,-1426.31,0.00021328,2]
[378369983,1754841042931,-1420.19,0.0002133,2]
[378369984,1754841042940,-460.0,0.0002133,2]
[378369985,1754841042950,-880.99,0.0002133,2]
[378369986,1754841042959,-464.35,0.0002133,2]
[378369987,1754841042968,-852.25,0.00021331,2]
[378369988,1754841042978,-1026.44,0.00021331,2]
[378369989,1754841042987,-669.75,0.00021331,2]
[378369990,1754841042997,-331.01575709,0.000214,2]
[378369991,1754841043007,-404.38618077,0.0002143,2]
[378369992,1754841043016,-460.0,0.0002143,2]
[378369993,1754841043026,-508.43,0.00021434,2]
[378369994,1754841043035,-151.0,0.000215,3]
[378369995,1754841043045,-192.97793528,0.00021512,2]
[378369996,1754841043054,-460.0,0.00021531,2]
[378369997,1754841043063,-2293.08,0.00021531,2]
[378369998,1754841043072,-499.59,0.00021531,2]
[378369999,1754841043081,-789.9,0.00021531,2]
[378370000,1754841043091,-612.691488,0.00021532,2]
[378370001,1754841043101,-612.691488,0.00021532,2]
[378370002,1754841043111,-460.0,0.00021532,2]
[378370003,1754841043121,-504.52,0.00021532,2]
[378370004,1754841043131,-190.54,0.00021532,2]
[378370005,1754841043140,-595.08,0.00021532,2]
[378370006,1754841043150,-932.83,0.00021532,2]
[378370007,1754841043159,-151.0,0.00021532,2]
[378370008,1754841043168,-508.43,0.00021535,2]
[378370009,1754841043178,-151.0,0.000216,3]
[378370010,1754841043187,-460.0,0.00021601,2]
[378370012,1754841043197,-968.36,0.00021602,2]
[378370014,1754841043206,-1426.31,0.00021602,2]
[378370016,1754841043215,-1420.19,0.00021604,2]
[378370018,1754841043224,-460.0,0.00021604,2]
[378370019,1754841043233,-880.99,0.00021604,2]
[378370021,1754841043243,-464.35,0.00021604,2]
[378370023,1754841043251,-852.25,0.00021605,2]
[378370025,1754841043260,-1026.44,0.00021605,2]
[378370027,1754841043270,-669.75,0.00021605,2]
[378370029,1754841043279,-460.0,0.00021704,2]
[378370031,1754841043288,-309.0,0.00021731,2]
[378370033,1754841043297,-151.0,0.000218,3]
[378370035,1754841043306,-460.0,0.00021805,2]
[378370037,1754841043316,-2293.08,0.00021805,2]
[378370039,1754841043325,-499.59,0.00021805,2]
[378370041,1754841043335,-789.9,0.00021805,2]
[378370043,1754841043344,-460.0,0.00021806,2]
[378370045,1754841043355,-504.52,0.00021806,2]
[378370047,1754841043364,-595.08,0.00021806,2]
[378370049,1754841043373,-932.83,0.00021806,2]
[378370051,1754841043383,-508.43,0.00021808,2]
[378370053,1754841043392,-508.43,0.00021808,2]
[378370055,1754841043402,-508.43,0.00021808,2]
[378370057,1754841043413,-508.43,0.00021808,2]
[378370059,1754841043424,-508.59,0.00021808,2]
[378370061,1754841043434,-1680.0,0.00021834,2]
[378370063,1754841043444,-460.0,0.00021875,2]
[378370065,1754841043455,-968.36,0.00021876,2]
[378370067,1754841043465,-1426.31,0.00021876,2]
[378370069,1754841043475,-1420.19,0.00021878,2]
[378370071,1754841043485,-460.0,0.00021878,2]
[378370073,1754841043494,-880.99,0.00021878,2]
[378370075,1754841043503,-464.35,0.00021878,2]
[378370077,1754841043513,-852.25,0.00021879,2]
[378370079,1754841043522,-1026.44,0.00021879,2]
[378370081,1754841043532,-669.75,0.00021879,2]
[378370083,1754841043541,-1000.000001,0.0002188,2]
[378370085,1754841043551,-151.0,0.000219,3]
[378370087,1754841043561,-151.0,0.000219,4]
[378370089,1754841043571,-331.01575709,0.000219,2]
[378370091,1754841043581,-172.00826619,0.000219,2]
[378370093,1754841043590,-151.0,0.00021917,2]
[378370095,1754841043599,-152.196196,0.00021917,2]
[378370097,1754841043608,-500.0,0.00021917,2]
[378370099,1754841043617,-500.0,0.00021917,2]
[378370101,1754841043627,-500.0,0.00021917,2]
[378370103,1754841043636,-500.0,0.00021917,2]
[378370105,1754841043646,-500.0,0.00021917,2]
[378370107,1754841043655,-500.0,0.00021917,2]
[378370109,1754841043665,-500.0,0.00021917,2]
[378370111,1754841043674,-6416.4,0.00021917,2]
[378370113,1754841043684,-453.29724915,0.00021973,2]
[378370115,1754841043697,-500.0,0.00021973,2]
[378370117,1754841043707,-500.0,0.00021973,2]
[378370119,1754841043716,-500.0,0.00021973,2]
[378370121,1754841043725,-500.0,0.00021973,2]
[378370123,1754841043734,-500.0,0.00021973,2]
[378370125,1754841043744,-500.0,0.00021973,2]
[378370127,1754841043754,-509.01474091,0.00021973,2]
[378370129,1754841043764,-500.0,0.00021973,2]
[378370131,1754841043773,-500.0,0.00021973,2]
[378370133,1754841043783,-443.76120411,0.00021973,2]
[378370135,1754841043793,-316.53490844,0.00021973,2]
[378370137,1754841043802,-200.0,0.00021973,2]
[378370139,1754841043811,-500.0,0.00021973,2]
[378370141,1754841043820,-500.0,0.00021973,2]
[378370143,1754841043830,-500.0,0.00021973,2]
[378370145,1754841043840,-500.0,0.00021973,2]
[378370146,1754841043850,-500.0,0.00021973,2]
[378370149,1754841043861,-500.0,0.00021973,2]
[378370150,1754841043871,-500.0,0.00021973,2]
[378370152,1754841043880,-151.0,0.00021973,7]
[378370154,1754841043890,-500.0,0.00021978,2]
[378370156,1754841043899,-460.0,0.00021978,2]
[378370158,1754841043908,-160.0,0.00021985,2]
[378370160,1754841043918,-151.0,0.00021998,7]
[378370162,1754841043928,-612.691488,0.00021998,7]
[378370164,1754841043938,-612.691488,0.00021998,7]
[378370166,1754841043947,-151.0,0.00021998,7]
[378370168,1754841043956,-151.0,0.00021998,7]
[378370170,1754841043965,-275332.78316308,0.00021998,2]
[378370172,1754841043974,-19553.2,0.00022,7]
[378370174,1754841043984,-612.691488,0.00022,7]
[378370176,1754841043992,-612.691488,0.00022,7]
[378370178,1754841044003,-75091.76,0.00022,7]
[378370180,1754841044012,-420.0,0.00022,2]
[378370182,1754841044021,-10875.43,0.00022,7]
[378370184,1754841044031,-151.0,0.00022,7]
[378370186,1754841044040,-282.80798,0.00022,7]
[378370188,1754841044050,-49151.64,0.00022,2]
[378370190,1754841044059,-185.0,0.00022,2]
[378370192,1754841044069,-461.62346162,0.00022,7]
[378370194,1754841044078,-312.16666667,0.00022,7]
[378370196,1754841044087,-12668.57659669,0.00022,7]
[378370198,1754841044098,-215.44987349,0.00022,7]
[378370200,1754841044108,-527.86640923,0.00022,7]
[378370202,1754841044119,-2410.57,0.00022,2]
[378370204,1754841044130,-344.75,0.00022,2]
[378370206,1754841044139,-167.0,0.00022,2]
[378370208,1754841044149,-460.0,0.00022079,2]
[378370210,1754841044158,-2293.08,0.00022079,2]
[378370212,1754841044168,-499.59,0.00022079,2]
[378370214,1754841044177,-789.9,0.00022079,2]
[378370216,1754841044186,-460.0,0.0002208,2]
[378370218,1754841044196,-504.52,0.0002208,2]
[378370220,1754841044205,-595.08,0.0002208,2]
[378370222,1754841044215,-932.83,0.0002208,2]
[378370224,1754841044224,-460.0,0.00022149,2]
[378370226,1754841044233,-968.36,0.0002215,2]
[378370228,1754841044242,-1426.31,0.0002215,2]
[378370230,1754841044252,-1420.19,0.00022152,2]
[378370232,1754841044261,-460.0,0.00022152,2]
[378370234,1754841044270,-880.99,0.00022152,2]
[378370236,1754841044279,-464.35,0.00022152,2]
[378370238,1754841044289,-852.25,0.00022153,2]
[378370240,1754841044298,-1026.44,0.00022153,2]
[378370242,1754841044308,-669.75,0.00022153,2]
[378370244,1754841044317,-167.0,0.00022192,7]
[378370246,1754841044326,-179.38,0.00022197,2]
[378370248,1754841044335,-151.0,0.000222,5]
[378370250,1754841044345,-500.0,0.00022252,2]
[378370252,1754841044353,-460.0,0.00022252,2]
[378370253,1754841044363,-302.36465456,0.00022292,2]
[378370256,1754841044372,-1208.24915964,0.00022292,2]
[378370257,1754841044381,-151.0,0.000223,10]
[378370259,1754841044391,-300.31866508,0.00022353,2]
[378370261,1754841044399,-2293.08,0.00022353,2]
[378370263,1754841044410,-499.59,0.00022353,2]
[378370265,1754841044419,-789.9,0.00022353,2]
[378370267,1754841044428,-460.0,0.00022354,2]
[378370269,1754841044438,-504.52,0.00022354,2]
[378370271,1754841044447,-595.08,0.00022354,2]
[378370273,1754841044456,-932.83,0.00022354,2]
[378370275,1754841044466,-151.0,0.00022382,7]
[378370277,1754841044475,-968.36,0.00022424,2]
[378370279,1754841044485,-1426.31,0.00022424,2]
[378370281,1754841044494,-1420.19,0.00022426,2]
[378370284,1754841044504,-460.0,0.00022426,2]
[378370286,1754841044513,-151.0,0.00022426,7]
[378370289,1754841044523,-229.952662,0.00022426,7]
[378370292,1754841044532,-229.952662,0.00022426,7]
[378370295,1754841044542,-880.99,0.00022426,2]
[378370298,1754841044551,-151.0,0.00022426,7]
[378370301,1754841044561,-464.35,0.00022426,2]
[378370304,1754841044571,-151.0,0.00022426,7]
[378370306,1754841044581,-852.25,0.00022427,2]
[378370308,1754841044590,-1026.44,0.00022427,2]
[378370310,1754841044600,-669.75,0.00022427,2]
[378370312,1754841044610,-153.0,0.00022459,2]
[378370314,1754841044619,-153.0,0.00022459,2]
[378370315,1754841044629,-151.0,0.000225,2]
[378370317,1754841044639,-313.66190617,0.00022521,2]
[378370319,1754841044649,-1000.0,0.00022521,2]
[378370321,1754841044659,-1000.0,0.00022521,2]
[378370323,1754841044669,-1013.54100745,0.00022521,2]
[378370325,1754841044680,-616.86229207,0.00022521,2]
[378370327,1754841044692,-486.87426642,0.00022521,2]
[378370329,1754841044701,-746.76763945,0.00022521,2]
[378370331,1754841044711,-500.0,0.00022526,2]
[378370333,1754841044721,-460.0,0.00022526,2]
[378370335,1754841044730,-151.0,0.00022526,7]
[378370337,1754841044740,-269.413332,0.00022526,7]
[378370339,1754841044754,-151.0,0.00022527,7]
[378370341,1754841044766,-151.0,0.00022527,7]
[378370343,1754841044776,-260.0,0.00022533,2]
[378370345,1754841044787,-151.0,0.000226,6]
[378370347,1754841044797,-2293.08,0.00022627,2]
[378370349,1754841044807,-152.89904,0.00022627,7]
[378370351,1754841044817,-499.59,0.00022627,2]
[378370352,1754841044826,-789.9,0.00022627,2]
[378370354,1754841044836,-460.0,0.00022628,2]
[378370356,1754841044846,-504.52,0.00022628,2]
[378370358,1754841044856,-595.08,0.00022628,2]
[378370360,1754841044866,-932.83,0.00022628,2]
[378370362,1754841044875,-353.72874864,0.00022658,2]
[378370364,1754841044885,-968.36,0.00022698,2]
[378370366,1754841044894,-1426.31,0.00022698,2]
[378370368,1754841044903,-151.0,0.000227,8]
[378370370,1754841044913,-1420.19,0.000227,2]
[378370372,1754841044922,-460.0,0.000227,2]
[378370374,1754841044934,-880.99,0.000227,2]
[378370376,1754841044944,-464.35,0.000227,2]
[378370378,1754841044953,-852.25,0.00022701,2]
[378370380,1754841044962,-1026.44,0.00022701,2]
[378370382,1754841044972,-669.75,0.00022701,2]
[378370384,1754841044981,-1056.80004799,0.0002278,2]
[378370386,1754841044990,-500.0,0.000228,2]
[378370387,1754841045001,-460.0,0.000228,2]
[378370389,1754841045011,-151.0,0.000229,8]
[378370391,1754841045020,-2293.08,0.00022901,2]
[378370403,1754841045128,-499.59,0.00022901,2]
[378370405,1754841045139,-789.9,0.00022901,2]
[378370407,1754841045149,-460.0,0.00022902,2]
[378370409,1754841045159,-504.52,0.00022902,2]
[378370411,1754841045169,-595.08,0.00022902,2]
[378370413,1754841045179,-932.83,0.00022902,2]
[378370415,1754841045189,-612.691488,0.00022904,7]
[378370417,1754841045198,-612.691488,0.00022904,7]
[378370419,1754841045208,-151.0,0.00022929,7]
[378370421,1754841045217,-179.38,0.00022961,2]
[378370423,1754841045227,-968.36,0.00022972,2]
[378370425,1754841045236,-1426.31,0.00022972,2]
[378370427,1754841045246,-1420.19,0.00022974,2]
[378370429,1754841045257,-482.99,0.00022974,2]
[378370431,1754841045266,-880.99,0.00022974,2]
[378370433,1754841045275,-464.35,0.00022974,2]
[378370435,1754841045284,-852.25,0.00022975,2]
[378370437,1754841045294,-1026.44,0.00022975,2]
[378370439,1754841045304,-669.75,0.00022975,2]
[378370441,1754841045314,-350.491345,0.00022991,7]
[378370442,1754841045323,-350.491345,0.00022991,7]
[378370445,1754841045332,-51497.0,0.00023,2]
[378370446,1754841045342,-160.0,0.00023,2]
[378370449,1754841045352,-200.0,0.00023001,15]
[378370450,1754841045362,-200.0,0.00023001,15]
[378370452,1754841045372,-300.0,0.00023001,15]
[378370454,1754841045381,-155.50084956,0.00023011,2]
[378370457,1754841045392,-151.0,0.00023011,2]
[378370459,1754841045401,-300.0,0.00023011,2]
[378370461,1754841045411,-500.0,0.00023011,2]
[378370462,1754841045421,-151.0,0.00023011,2]
[378370464,1754841045430,-151.0,0.00023011,2]
[378370465,1754841045440,-151.0,0.00023011,2]
[378370466,1754841045449,-151.0,0.00023011,2]
[378370467,1754841045458,-151.0,0.00023011,2]
[378370468,1754841045468,-151.0,0.00023011,2]
[378370469,1754841045478,-151.0,0.00023011,2]
[378370470,1754841045487,-151.0,0.00023011,2]
[378370471,1754841045497,-151.0,0.00023011,2]
[378370472,1754841045507,-151.0,0.00023011,2]
[378370473,1754841045516,-151.0,0.00023011,2]
[378370474,1754841045525,-151.41275615,0.00023011,2]
[378370475,1754841045534,-18502.69577858,0.00023011,2]
[378370476,1754841045544,-151.0,0.00023011,2]
[378370477,1754841045553,-151.0,0.00023011,2]
[378370478,1754841045563,-151.0,0.00023011,2]
[378370479,1754841045573,-151.0,0.00023011,2]
[378370480,1754841045583,-2183.31810187,0.00023011,2]
[378370481,1754841045593,-151.0,0.00023011,2]
[378370482,1754841045602,-151.0,0.00023011,2]
[378370483,1754841045612,-250.0,0.00023011,2]
[378370484,1754841045621,-151.0,0.00023011,2]
[378370485,1754841045631,-151.0,0.00023011,2]
[378370486,1754841045641,-185.0,0.00023014,7]
[378370487,1754841045650,-167.0,0.00023014,7]
[378370489,1754841045660,-256.77,0.00023014,2]
[378370491,1754841045669,-612.691488,0.00023048,7]
[378370492,1754841045679,-612.691488,0.00023048,7]
[378370493,1754841045689,-2264.10087164,0.00023066,2]
[378370494,1754841045699,-151.0,0.00023068,7]
[378370495,1754841045709,-1500.0,0.00023068,2]
[378370496,1754841045719,-955.8040511,0.00023068,2]
[378370497,1754841045729,-500.0,0.00023074,2]
[378370498,1754841045739,-460.0,0.00023074,2]
[378370499,1754841045750,-360.0,0.00023081,2]
[378370500,1754841045759,-151.0,0.000231,5]
[378370501,1754841045772,-2347.87260389,0.00023121,2]
[378370502,1754841045782,-192.97793528,0.00023168,2]
[378370503,1754841045792,-2293.08,0.00023175,2]
[378370504,1754841045802,-499.59,0.00023175,2]
[378370505,1754841045811,-789.9,0.00023175,2]
[378370506,1754841045820,-350.491345,0.00023176,7]
[378370507,1754841045830,-350.491345,0.00023176,7]
[378370510,1754841045840,-460.0,0.00023176,2]
[378370512,1754841045849,-504.52,0.00023176,2]
[378370515,1754841045859,-595.08,0.00023176,2]
[378370518,1754841045868,-932.83,0.00023176,2]
[378370521,1754841045877,-184.37172481,0.00023183,2]
[378370523,1754841045887,-2410.57,0.00023193,2]
[378370525,1754841045897,-612.691488,0.000232,7]
[378370527,1754841045906,-612.691488,0.000232,7]
[378370529,1754841045915,-350.491345,0.000232,7]
[378370531,1754841045926,-350.491345,0.000232,7]
[378370533,1754841045935,-151.0,0.000232,7]
[378370535,1754841045944,-968.36,0.00023246,2]
[378370537,1754841045953,-1426.31,0.00023246,2]
[378370539,1754841045962,-1420.19,0.00023248,2]
[378370541,1754841045972,-880.99,0.00023248,2]
[378370543,1754841045981,-464.35,0.00023248,2]
[378370545,1754841045991,-852.25,0.00023249,2]
[378370547,1754841046000,-1026.44,0.00023249,2]
[378370548,1754841046009,-669.75,0.00023249,2]
[378370551,1754841046018,-150.0,0.00023273,2]
[378370552,1754841046027,-500.0,0.00023273,2]
[378370554,1754841046037,-500.0,0.00023273,2]
[378370556,1754841046046,-500.0,0.00023273,2]
[378370558,1754841046056,-500.0,0.00023273,2]
[378370560,1754841046065,-500.0,0.00023273,2]
[378370562,1754841046074,-500.0,0.00023273,2]
[378370564,1754841046084,-500.0,0.00023273,2]
[378370566,1754841046094,-500.0,0.00023273,2]
[378370568,1754841046103,-500.0,0.00023273,2]
[378370570,1754841046112,-500.0,0.00023273,2]
[378370572,1754841046124,-75091.76,0.000233,7]
[378370574,1754841046133,-10875.43,0.000233,7]
[378370576,1754841046142,-49151.64,0.000233,2]
[378370578,1754841046151,-151.0,0.000233,7]
[378370580,1754841046161,-151.0,0.000233,7]
[378370582,1754841046170,-151.0,0.000233,7]
[378370584,1754841046179,-151.0,0.000233,7]
[378370586,1754841046188,-151.0,0.000233,7]